fUSD/lending_fUSD_20250618
["ID","MTS","AMOUNT","RATE_DAILY","PERIOD"]
[366432433,1750253447094,-628.48,0.00016438,2]
[366432434,1750253447104,-512.96,0.00016438,2]
[366432435,1750253447114,-1868.6,0.00016438,2]
[366432436,1750253447124,-490.0,0.00016438,2]
[366432437,1750253447134,-1520.38,0.00016438,2]
[366432438,1750253447144,-490.0,0.00016438,2]
[366432439,1750253447156,-2037.69,0.00016438,2]
[366432440,1750253447165,-1037.55,0.00016438,2]
[366432441,1750253447174,-2159.0,0.00016438,2]
[366432442,1750253447184,-717.21,0.00016438,2]
[366432443,1750253447193,-1566.2,0.00016438,2]
[366432444,1750253447203,-648.17,0.00016438,2]
[366432445,1750253447213,-1069.01,0.00016438,2]
[366432446,1750253447222,-151.0,0.00016438,2]
[366432447,1750253447232,-27757.8,0.00016438,2]
[366432448,1750253447242,-151.0,0.00016438,2]
[366432449,1750253447252,-1847.27,0.00016438,2]
[366432450,1750253447264,-922.09,0.00016438,2]
[366432451,1750253447274,-1153.8,0.00016438,2]
[366432452,1750253447284,-243.819048,0.00016438,2]
[366432453,1750253447299,-8301.89,0.00016438,2]
[366432454,1750253447309,-695.86,0.00016438,2]
[366432455,1750253447319,-924.76,0.00016438,2]
[366432456,1750253447328,-614.99,0.00016438,2]
[366432457,1750253447338,-490.0,0.00016438,2]
[366432458,1750253447348,-1275.1,0.00016438,2]
[366432459,1750253447358,-490.0,0.00016438,2]
[366432460,1750253447368,-4093.72,0.00016438,2]
[366432461,1750253447378,-2107.02,0.00016438,2]
[366432462,1750253447388,-1384.97,0.00016438,2]
[366432463,1750253447397,-490.0,0.00016438,2]
[366432464,1750253447407,-490.0,0.00016438,2]
[366432465,1750253447417,-490.0,0.00016438,2]
[366432466,1750253447427,-490.0,0.00016438,2]
[366432467,1750253447436,-2304.17,0.00016438,2]
[366432468,1750253447446,-820.7,0.00016438,2]
[366432469,1750253447456,-2055.98,0.00016438,2]
[366432470,1750253447466,-827.96,0.00016438,2]
[366432471,1750253447476,-1494.52,0.00016438,2]
[366432472,1750253447486,-490.0,0.00016438,2]
[366432473,1750253447496,-1549.17,0.00016438,2]
[366432474,1750253447506,-490.0,0.00016438,2]
[366432475,1750253447517,-490.0,0.00016438,2]
[366432476,1750253447526,-490.0,0.00016438,2]
[366432477,1750253447537,-4878.16,0.00016438,2]
[366432478,1750253447546,-524.61,0.00016438,2]
[366432479,1750253447556,-19991.97,0.00016438,2]
[366432480,1750253447566,-490.0,0.00016438,2]
[366432481,1750253447575,-490.0,0.00016438,2]
[366432482,1750253447585,-490.0,0.00016438,2]
[366432483,1750253447594,-1171.44,0.00016438,2]
[366432484,1750253447604,-1289.39,0.00016438,2]
[366432485,1750253447613,-736.13,0.00016438,2]
[366432486,1750253447623,-2302.08,0.00016438,2]
[366432487,1750253447633,-490.0,0.00016438,2]
[366432488,1750253447642,-11977.38,0.00016438,2]
[366432489,1750253447651,-151.0,0.00016438,2]
[366432490,1750253447661,-151.0,0.00016438,2]
[366432491,1750253447670,-2062.64,0.00016438,2]
[366432492,1750253447680,-817.22,0.00016438,2]
[366432493,1750253447690,-876.76,0.00016438,2]
[366432494,1750253447699,-1168.38,0.00016438,2]
[366432495,1750253447709,-432.20288992,0.00016438,2]
[366432496,1750253447722,-1825.83,0.00016438,2]
[366432497,1750253447732,-151.0,0.00016438,2]
[366432498,1750253447742,-151.0,0.00016438,2]
[366432499,1750253447752,-492.75312454,0.00016438,2]
[366432500,1750253447764,-955.27,0.00016438,2]
[366432501,1750253447775,-151.0,0.00016438,2]
[366432502,1750253447785,-490.0,0.00016438,2]
[366432503,1750253447795,-151.0,0.00016438,2]
[366432504,1750253447805,-490.0,0.00016438,2]
[366432505,1750253447815,-1933.98,0.00016438,2]
[366432506,1750253447826,-8390.12,0.00016438,2]
[366432507,1750253447836,-490.0,0.00016438,2]
[366432508,1750253447846,-4831.96,0.00016438,2]
[366432509,1750253447856,-2341.12,0.00016438,2]
[366432510,1750253447866,-490.0,0.00016438,2]
[366432511,1750253447876,-1657.72,0.00016438,2]
[366432512,1750253447886,-151.0,0.00016438,2]
[366432513,1750253447895,-193.365528,0.00016438,2]
[366432514,1750253447904,-1215.07,0.00016438,2]
[366432515,1750253447914,-490.0,0.00016438,2]
[366432516,1750253447923,-490.0,0.00016438,2]
[366432517,1750253447933,-739.55,0.00016438,2]
[366432518,1750253447943,-151.0,0.00016438,2]
[366432519,1750253447952,-498.99,0.00016438,2]
[366432520,1750253447962,-151.0,0.00016438,2]
[366432521,1750253447971,-3658.67,0.00016438,2]
[366432522,1750253447981,-1676.66,0.00016438,2]
[366432523,1750253447991,-4355.1,0.00016438,2]
[366432524,1750253448001,-490.0,0.00016438,2]
[366432525,1750253448011,-496.15308281,0.00016438,2]
[366432526,1750253448021,-151.0,0.00016438,2]
[366432527,1750253448031,-151.0,0.00016438,2]
[366432528,1750253448041,-490.0,0.00016438,2]
[366432529,1750253448051,-1785.79,0.00016438,2]
[366432530,1750253448061,-840.18,0.00016438,2]
[366432531,1750253448071,-7000.0,0.00016438,2]
[366432532,1750253448081,-2231.42,0.00016438,2]
[366432533,1750253448092,-1273.57,0.00016438,2]
[366432534,1750253448102,-490.0,0.00016438,2]
[366432535,1750253448112,-1535.14,0.00016438,2]
[366432537,1750253448122,-1372.3,0.00016438,2]
[366432539,1750253448132,-490.0,0.00016438,2]
[366432541,1750253448142,-490.0,0.00016438,2]
[366432543,1750253448152,-368.24734254,0.00016438,2]
[366432545,1750253448162,-496.27785393,0.00016438,2]
[366432547,1750253448172,-490.0,0.00016438,2]
[366432549,1750253448181,-17165.47,0.00016438,2]
[366432551,1750253448191,-889.41,0.00016438,2]
[366432553,1750253448201,-465.691636,0.00016438,2]
[366432555,1750253448211,-4362.65,0.00016438,2]
[366432557,1750253448221,-490.0,0.00016438,2]
[366432559,1750253448231,-490.0,0.00016438,2]
[366432561,1750253448241,-1048.54,0.00016438,2]
[366432563,1750253448250,-555.79130093,0.00016438,2]
[366432565,1750253448261,-2206.49,0.00016438,2]
[366432567,1750253448274,-5759.13,0.00016438,2]
[366432569,1750253448283,-490.0,0.00016438,2]
[366432571,1750253448296,-1192.32,0.00016438,2]
[366432573,1750253448306,-490.0,0.00016438,2]
[366432575,1750253448318,-490.0,0.00016438,2]
[366432577,1750253448329,-3595.75,0.00016438,2]
[366432579,1750253448339,-1762.61,0.00016438,2]
[366432581,1750253448349,-490.0,0.00016438,2]
[366432583,1750253448359,-5075.13,0.00016438,2]
[366432585,1750253448370,-151.0,0.00016438,2]
[366432587,1750253448380,-151.0,0.00016438,2]
[366432589,1750253448390,-8307.14,0.00016438,2]
[366432591,1750253448400,-490.0,0.00016438,2]
[366432593,1750253448410,-435.39574813,0.00016438,2]
[366432595,1750253448419,-2233.03,0.00016438,2]
[366432597,1750253448429,-490.0,0.00016438,2]
[366432599,1750253448439,-8018.61,0.00016438,2]
[366432601,1750253448450,-395.75342262,0.00016438,2]
[366432603,1750253448460,-490.0,0.00016438,2]
[366432605,1750253448469,-462.32812142,0.00016438,2]
[366432607,1750253448479,-166.09598375,0.00016438,2]
[366432609,1750253448489,-1263.18,0.00016438,2]
[366432611,1750253448499,-742.76,0.00016438,2]
[366432613,1750253448509,-7141.58,0.00016438,2]
[366432615,1750253448520,-1925.21,0.00016438,2]
[366432617,1750253448530,-2661.86,0.00016438,2]
[366432619,1750253448540,-557.22,0.00016438,2]
[366432621,1750253448550,-656.99,0.00016438,2]
[366432623,1750253448560,-490.0,0.00016438,2]
[366432625,1750253448570,-3798.87,0.00016438,2]
[366432627,1750253448580,-490.0,0.00016438,2]
[366432629,1750253448588,-540.41,0.00016438,2]
[366432631,1750253448598,-1334.04,0.00016438,2]
[366432633,1750253448607,-1857.29,0.00016438,2]
[366432635,1750253448617,-151.0,0.00016438,2]
[366432637,1750253448627,-946.45,0.00016438,2]
[366432639,1750253448637,-490.0,0.00016438,2]
[366432641,1750253448646,-151.0,0.00016438,2]
[366432643,1750253448656,-3663.76,0.00016438,2]
[366432645,1750253448665,-1976.24,0.00016438,2]
[366432647,1750253448676,-490.0,0.00016438,2]
[366432648,1750253448686,-1112.24,0.00016438,2]
[366432649,1750253448696,-3028.12,0.00016438,2]
[366432650,1750253448706,-1370.21,0.00016438,2]
[366432651,1750253448717,-151.0,0.00016438,2]
[366432652,1750253448727,-151.0,0.00016438,2]
[366432653,1750253448737,-1490.54,0.00016438,2]
[366432654,1750253448747,-4045.27,0.00016438,2]
[366432655,1750253448758,-490.0,0.00016438,2]
[366432656,1750253448768,-7271.36,0.00016438,2]
[366432658,1750253448778,-490.0,0.00016438,2]
[366432660,1750253448787,-490.0,0.00016438,2]
[366432662,1750253448797,-500.0,0.00016438,2]
[366432664,1750253448807,-500.0,0.00016438,2]
[366432666,1750253448816,-500.0,0.00016438,2]
[366432668,1750253448826,-2837.45,0.00016438,2]
[366432670,1750253448836,-500.0,0.00016438,2]
[366432672,1750253448846,-460.0,0.00016438,2]
[366432674,1750253448855,-500.0,0.00016438,2]
[366432676,1750253448864,-500.0,0.00016438,2]
[366432678,1750253448874,-471.76079103,0.00016438,2]
[366432680,1750253448883,-500.0,0.00016438,2]
[366432682,1750253448893,-490.0,0.00016438,2]
[366432684,1750253448902,-490.0,0.00016438,2]
[366432686,1750253448912,-490.0,0.00016438,2]
[366432688,1750253448922,-490.0,0.00016438,2]
[366432690,1750253448932,-1085.13,0.00016438,2]
[366432692,1750253448942,-490.0,0.00016438,2]
[366432693,1750253448951,-490.0,0.00016438,2]
[366432694,1750253448960,-3539.67,0.00016438,2]
[366432695,1750253448970,-1939.14,0.00016438,2]
[366432696,1750253448979,-1895.94,0.00016438,2]
[366432697,1750253448990,-1401.11,0.00016438,2]
[366432698,1750253449000,-2479.68,0.00016438,2]
[366432699,1750253449011,-490.0,0.00016438,2]
[366432701,1750253449020,-490.0,0.00016438,2]
[366432703,1750253449030,-1036.28,0.00016438,2]
[366432705,1750253449042,-490.0,0.00016438,2]
[366432706,1750253449052,-2666.26,0.00016438,2]
[366432708,1750253449063,-9223.72,0.00016438,2]
[366432710,1750253449073,-716.34,0.00016438,2]
[366432711,1750253449084,-5136.09,0.00016438,2]
[366432712,1750253449095,-1106.42,0.00016438,2]
[366432713,1750253449105,-151.0,0.00016438,2]
[366432714,1750253449115,-490.0,0.00016438,2]
[366432715,1750253449125,-524.07,0.00016438,2]
[366432716,1750253449136,-1430.107054,0.00016438,2]
[366432717,1750253449146,-1430.107054,0.00016438,2]
[366432718,1750253449156,-1238.6,0.00016438,2]
[366432719,1750253449166,-2121.19,0.00016438,2]
[366432720,1750253449176,-1467.23,0.00016438,2]
[366432721,1750253449186,-1015.2,0.00016438,2]
[366432722,1750253449196,-490.0,0.00016438,2]
[366432723,1750253449206,-5217.91,0.00016438,2]
[366432724,1750253449216,-3605.25,0.00016438,2]
[366432725,1750253449226,-1430.107054,0.00016438,2]
[366432726,1750253449236,-151.0,0.00016438,2]
[366432727,1750253449246,-1430.107054,0.00016438,2]
[366432728,1750253449257,-151.0,0.00016438,2]
[366432729,1750253449269,-13935.37,0.00016438,2]
[366432730,1750253449279,-3376.84,0.00016438,2]
[366432731,1750253449292,-1132.85,0.00016438,2]
[366432732,1750253449302,-798.41,0.00016438,2]
[366432733,1750253449312,-490.0,0.00016438,2]
[366432734,1750253449322,-490.0,0.00016438,2]
[366432735,1750253449333,-773.1,0.00016438,2]
[366432736,1750253449343,-1047.64,0.00016438,2]
[366432737,1750253449353,-490.0,0.00016438,2]
[366432738,1750253449364,-204.202996,0.00016438,2]
[366432739,1750253449374,-2554.7,0.00016438,2]
[366432740,1750253449384,-1821.06,0.00016438,2]
[366432741,1750253449395,-2435.0,0.00016438,2]
[366432742,1750253449405,-2155.24,0.00016438,2]
[366432743,1750253449415,-150.0,0.00016438,2]
[366432744,1750253449426,-8925.85,0.00016438,2]
[366432745,1750253449436,-490.0,0.00016438,2]
[366432746,1750253449446,-785.62,0.00016438,2]
[366432747,1750253449456,-631.68,0.00016438,2]
[366432748,1750253449467,-150.0,0.00016438,2]
[366432749,1750253449476,-2941.17,0.00016438,2]
[366432750,1750253449487,-150.0,0.00016438,2]
[366432751,1750253449496,-2037.59,0.00016438,2]
[366432752,1750253449506,-4485.48,0.00016438,2]
[366432753,1750253449520,-580.99,0.00016438,2]
[366432754,1750253449530,-150.0,0.00016438,2]
[366432755,1750253449540,-800.04,0.00016438,2]
[366432756,1750253449550,-8263.45,0.00016438,2]
[366432757,1750253449560,-1424.23,0.00016438,2]
[366432758,1750253449570,-150.0,0.00016438,2]
[366432759,1750253449581,-150.0,0.00016438,2]
[366432760,1750253449591,-2947.67,0.00016438,2]
[366432761,1750253449600,-2524.38,0.00016438,2]
[366432762,1750253449609,-493.18289072,0.00016438,2]
[366432763,1750253449619,-490.0,0.00016438,2]
[366432764,1750253449629,-500.0,0.00016438,2]
[366432765,1750253449638,-500.0,0.00016438,2]
[366432766,1750253449647,-490.0,0.00016438,2]
[366432767,1750253449657,-500.0,0.00016438,2]
[366432768,1750253449667,-5910.34,0.00016438,2]
[366432769,1750253449676,-205.87769676,0.00016438,2]
[366432770,1750253449686,-1411.03,0.00016438,2]
[366432771,1750253449695,-1282.35,0.00016438,2]
[366432772,1750253449705,-490.0,0.00016438,2]
[366432773,1750253449715,-834.65,0.00016438,2]
[366432774,1750253449725,-490.0,0.00016438,2]
[366432775,1750253449734,-1000.53,0.00016438,2]
[366432776,1750253449744,-490.0,0.00016438,2]
[366432777,1750253449753,-490.0,0.00016438,2]
[366432778,1750253449763,-1228.68,0.00016438,2]
[366432779,1750253449773,-4128.27,0.00016438,2]
[366432780,1750253449783,-2591.44,0.00016438,2]
[366432781,1750253449793,-151.0,0.00016438,2]
[366432782,1750253449802,-151.0,0.00016438,2]
[366432783,1750253449812,-493.62805722,0.00016438,2]
[366432784,1750253449822,-675.01,0.00016438,2]
[366432785,1750253449832,-1573.94,0.00016438,2]
[366432786,1750253449841,-3654.5,0.00016438,2]
[366432787,1750253449851,-3884.48,0.00016438,2]
[366432788,1750253449860,-269.5945995,0.00016438,2]
[366432789,1750253449869,-949.72,0.00016438,2]
[366432790,1750253449879,-490.0,0.00016438,2]
[366432791,1750253449888,-490.0,0.00016438,2]
[366432792,1750253449898,-151.0,0.00016438,2]
[366432793,1750253449907,-151.0,0.00016438,2]
[366432794,1750253449917,-490.0,0.00016438,2]
[366432795,1750253449927,-3974.96,0.00016438,2]
[366432796,1750253449937,-2105.12,0.00016438,2]
[366432797,1750253449947,-490.0,0.00016438,2]
[366432798,1750253449956,-8816.67,0.00016438,2]
[366432799,1750253449966,-151.0,0.00016438,2]
[366432800,1750253449976,-2490.75,0.00016438,2]
[366432801,1750253449986,-2575.93,0.00016438,2]
[366432802,1750253449995,-151.0,0.00016438,2]
[366432803,1750253450005,-490.0,0.00016438,2]
[366432804,1750253450016,-1049.38,0.00016438,2]
[366432805,1750253450026,-500.0,0.00016438,2]
[366432806,1750253450036,-490.0,0.00016438,2]
[366432807,1750253450046,-1350.56,0.00016438,2]
[366432808,1750253450056,-2590.78,0.00016438,2]
[366432809,1750253450066,-965.02,0.00016438,2]
[366432810,1750253450076,-151.0,0.00016438,2]
[366432811,1750253450086,-151.0,0.00016438,2]
[366432812,1750253450096,-1514.26,0.00016438,2]
[366432813,1750253450106,-7503.52,0.00016438,2]
[366432814,1750253450115,-4279.92,0.00016438,2]
[366432815,1750253450125,-882.86,0.00016438,2]
[366432816,1750253450135,-10553.52,0.00016438,2]
[366432817,1750253450145,-490.0,0.00016438,2]
[366432818,1750253450154,-490.0,0.00016438,2]
[366432819,1750253450164,-863.6,0.00016438,2]
[366432820,1750253450173,-1572.7,0.00016438,2]
[366432821,1750253450183,-490.0,0.00016438,2]
[366432822,1750253450193,-368.3049301,0.00016438,2]
[366432823,1750253450203,-2497.68,0.00016438,2]
[366432824,1750253450212,-490.0,0.00016438,2]
[366432825,1750253450222,-1312.84,0.00016438,2]
[366432826,1750253450231,-490.0,0.00016438,2]
[366432827,1750253450241,-151.0,0.00016438,2]
[366432828,1750253450251,-490.0,0.00016438,2]
[366432829,1750253450262,-151.0,0.00016438,2]
[366432830,1750253450276,-1168.09,0.00016438,2]
[366432831,1750253450285,-490.0,0.00016438,2]
[366432832,1750253450295,-793.65,0.00016438,2]
[366432833,1750253450304,-1000.83,0.00016438,2]
[366432834,1750253450314,-490.0,0.00016438,2]
[366432835,1750253450323,-151.0,0.00016438,2]
[366432836,1750253450332,-151.0,0.00016438,2]
[366432837,1750253450341,-295.522694,0.00016438,2]
[366432838,1750253450351,-151.0,0.00016438,2]
[366432839,1750253450361,-490.0,0.00016438,2]
[366432840,1750253450372,-622.36,0.00016438,2]
[366432841,1750253450382,-985.48,0.00016438,2]
[366432842,1750253450391,-490.0,0.00016438,2]
[366432843,1750253450401,-1575.22,0.00016438,2]
[366432844,1750253450411,-10846.9,0.00016438,2]
[366432845,1750253450421,-5470.94,0.00016438,2]
[366432846,1750253450430,-641.75,0.00016438,2]
[366432847,1750253450440,-23409.03,0.00016438,2]
[366432848,1750253450449,-151.0,0.00016438,2]
[366432849,1750253450459,-151.0,0.00016438,2]
[366432850,1750253450468,-490.0,0.00016438,2]
[366432851,1750253450478,-490.0,0.00016438,2]
[366432852,1750253450488,-151.0,0.00016438,2]
[366432853,1750253450498,-151.0,0.00016438,2]
[366432854,1750253450507,-151.0,0.00016438,2]
[366432855,1750253450519,-2080.91,0.00016438,2]
[366432856,1750253450529,-5679.7,0.00016438,2]
[366432857,1750253450538,-1042.28,0.00016438,2]
[366432858,1750253450548,-555.09,0.00016438,2]
[366432859,1750253450557,-1419.29,0.00016438,2]
[366432860,1750253450567,-4036.88,0.00016438,2]
[366432861,1750253450576,-4036.88,0.00016438,2]
[366432862,1750253450586,-4036.88,0.00016438,2]
[366432863,1750253450712,-4036.88,0.00016438,2]
[366432864,1750253450738,-1784.0,0.00016438,2]
[366432865,1750253450748,-4036.88,0.00016438,2]
[366432866,1750253450758,-4036.88,0.00016438,2]
[366432867,1750253450770,-4036.88,0.00016438,2]
[366432868,1750253450780,-982.53,0.00016438,2]
[366432869,1750253450789,-490.0,0.00016438,2]
[366432870,1750253450800,-490.0,0.00016438,2]
[366432871,1750253450810,-1310.54,0.00016438,2]
[366432872,1750253450819,-583.72,0.00016438,2]
[366432873,1750253450829,-2625.22,0.00016438,2]
[366432874,1750253450838,-151.0,0.00016438,2]
[366432875,1750253450848,-490.0,0.00016438,2]
[366432876,1750253450858,-663.83,0.00016438,2]
[366432877,1750253450868,-3378.04,0.00016438,2]
[366432878,1750253450878,-1576.79,0.00016438,2]
[366432879,1750253450887,-151.0,0.00016438,2]
[366432880,1750253450897,-490.0,0.00016438,2]
[366432881,1750253450907,-2816.0,0.00016438,2]
[366432882,1750253450917,-162.566288,0.00016438,2]
[366432883,1750253450927,-823.69,0.00016438,2]
[366432884,1750253450936,-627.44,0.00016438,2]
[366432885,1750253450945,-627.44,0.00016438,2]
[366432886,1750253450955,-627.44,0.00016438,2]
[366432887,1750253450965,-1002.8,0.00016438,2]
[366432888,1750253450975,-627.44,0.00016438,2]
[366432889,1750253450985,-620.35,0.00016438,2]
[366432890,1750253450994,-627.44,0.00016438,2]
[366432891,1750253451004,-640.28,0.00016438,2]
[366432892,1750253451016,-627.44,0.00016438,2]
[366432893,1750253451027,-627.44,0.00016438,2]
[366432894,1750253451037,-490.0,0.00016438,2]
[366432895,1750253451048,-499.37472954,0.00016438,2]
[366432896,1750253451059,-2286.31,0.00016438,2]
[366432897,1750253451069,-151.0,0.00016438,2]
[366432898,1750253451080,-151.0,0.00016438,2]
[366432899,1750253451090,-490.0,0.00016438,2]
[366432900,1750253451100,-491.99,0.00016438,2]
[366432901,1750253451110,-379.81374018,0.00016438,5]
[366432902,1750253451120,-282.37322,0.00016439,2]
[366432903,1750253451130,-151.0,0.00016439,2]
[366432904,1750253451140,-151.0,0.00016439,2]
[366432905,1750253451150,-195.72793,0.00016439,2]
[366432906,1750253451160,-195.72793,0.00016439,2]
[366432907,1750253451170,-151.0,0.00016439,2]
[366432908,1750253451180,-151.0,0.00016439,2]
[366432909,1750253451189,-195.72793,0.00016439,2]
[366432910,1750253451199,-195.72793,0.00016439,2]
[366432911,1750253451209,-151.0,0.00016439,2]
[366432912,1750253451219,-151.0,0.00016439,2]
[366432913,1750253451228,-151.0,0.00016439,2]
[366432914,1750253451238,-151.0,0.00016439,2]
[366432915,1750253451248,-151.0,0.00016439,2]
[366432916,1750253451258,-151.0,0.00016439,2]
[366432917,1750253451270,-151.0,0.00016439,2]
[366432918,1750253451280,-151.0,0.00016439,2]
[366432919,1750253451291,-151.0,0.00016439,2]
[366432920,1750253451301,-266.654676,0.00016439,2]
[366432921,1750253451311,-151.0,0.00016439,2]
[366432922,1750253451321,-151.0,0.00016439,2]
[366432923,1750253451331,-151.0,0.00016439,2]
[366432924,1750253451341,-151.0,0.00016439,2]
[366432925,1750253451351,-151.0,0.00016439,2]
[366432926,1750253451360,-255.583863,0.00016439,2]
[366432927,1750253451372,-151.0,0.00016439,2]
[366432928,1750253451382,-151.0,0.00016439,2]
[366432929,1750253451391,-151.0,0.00016439,2]
[366432930,1750253451400,-166.268819,0.00016439,2]
[366432931,1750253451410,-1430.107054,0.00016439,2]
[366432932,1750253451420,-1430.107054,0.00016439,2]
[366432933,1750253451429,-1430.107054,0.00016439,2]
[366432934,1750253451438,-151.0,0.00016439,2]
[366432935,1750253451448,-1430.107054,0.00016439,2]
[366432936,1750253451458,-151.0,0.00016439,2]
[366432937,1750253451468,-151.0,0.00016439,2]
[366432938,1750253451477,-151.0,0.00016439,2]
[366432939,1750253451486,-151.0,0.00016439,2]
[366432940,1750253451496,-151.0,0.00016439,2]
[366432941,1750253451505,-151.0,0.00016439,2]
[366432942,1750253451517,-198.596366,0.00016439,2]
[366432943,1750253451527,-151.0,0.00016439,2]
[366432944,1750253451538,-151.0,0.00016439,2]
[366432945,1750253451548,-151.0,0.00016439,2]
[366432946,1750253451558,-151.0,0.00016439,2]
[366432947,1750253451568,-151.0,0.00016439,2]
[366432948,1750253451578,-151.0,0.00016439,2]
[366432949,1750253451588,-151.0,0.00016439,2]
[366432950,1750253451598,-151.0,0.00016439,2]
[366432951,1750253451609,-221.841276,0.00016439,2]
[366432952,1750253451619,-432.39618296,0.00016439,2]
[366432953,1750253451629,-500.0,0.00016439,2]
[366432954,1750253451640,-194.20004269,0.00016439,2]
[366432955,1750253451651,-500.0,0.00016439,2]
[366432956,1750253451660,-500.0,0.00016439,2]
[366432957,1750253451671,-500.0,0.00016439,2]
[366432958,1750253451680,-371.74726613,0.00016439,2]
[366432959,1750253451688,-3891.14914199,0.00016439,2]
[366432960,1750253451698,-3891.14914199,0.00016439,2]
[366432961,1750253451707,-3891.14914199,0.00016439,2]
[366432962,1750253451716,-3891.14914199,0.00016439,2]
[366432963,1750253451727,-3891.14914199,0.00016439,2]
[366432964,1750253451736,-3891.14914199,0.00016439,2]
[366432965,1750253451746,-3891.14914199,0.00016439,2]
[366432966,1750253451756,-3891.14914199,0.00016439,2]
[366432967,1750253451767,-3891.14914199,0.00016439,2]
[366432968,1750253451778,-3891.14914199,0.00016439,2]
[366432969,1750253451788,-3891.14914199,0.00016439,2]
[366432970,1750253451797,-3891.14914199,0.00016439,2]
[366432971,1750253451807,-3891.14914199,0.00016439,2]
[366432972,1750253451818,-3891.14914199,0.00016439,2]
[366432973,1750253451828,-3891.14914199,0.00016439,2]
[366432974,1750253451838,-3891.14914199,0.00016439,2]
[366432975,1750253451849,-3891.14914199,0.00016439,2]
[366432976,1750253451859,-3891.14914199,0.00016439,2]
[366432977,1750253451870,-3891.14914199,0.00016439,2]
[366432978,1750253451880,-3891.14914199,0.00016439,2]
[366432979,1750253451890,-3891.14914199,0.00016439,2]
[366432980,1750253451899,-3891.14914199,0.00016439,2]
[366432982,1750253451910,-3891.14914199,0.00016439,2]
[366432983,1750253451919,-3891.14914199,0.00016439,2]
[366432984,1750253451928,-3891.14914199,0.00016439,2]
[366432985,1750253451938,-3891.14914199,0.00016439,2]
[366432986,1750253451948,-3891.14914199,0.00016439,2]
[366432987,1750253451958,-3891.14914199,0.00016439,2]
[366432988,1750253451968,-3891.14914199,0.00016439,2]
[366432989,1750253451978,-3891.14914199,0.00016439,2]
[366432990,1750253451988,-3891.14914199,0.00016439,2]
[366432991,1750253451998,-3891.14914198,0.00016439,2]
[366432992,1750253452008,-3891.14914199,0.00016439,2]
[366432993,1750253452020,-3891.14914199,0.00016439,2]
[366432994,1750253452030,-3891.14914199,0.00016439,2]
[366432995,1750253452039,-3891.14914199,0.00016439,2]
[366432996,1750253452049,-3891.14914199,0.00016439,2]
[366432997,1750253452059,-3891.14914199,0.00016439,2]
[366432998,1750253452069,-3891.14914199,0.00016439,2]
[366432999,1750253452079,-3891.14914199,0.00016439,2]
[366433000,1750253452089,-3891.14914199,0.00016439,2]
[366433001,1750253452099,-3891.14914199,0.00016439,2]
[366433002,1750253452108,-3891.14914199,0.00016439,2]
[366433003,1750253452118,-3891.14914199,0.00016439,2]
[366433004,1750253452129,-3891.14914199,0.00016439,2]
[366433005,1750253452139,-3891.14914199,0.00016439,2]
[366433006,1750253452148,-3891.14914199,0.00016439,2]
[366433007,1750253452158,-3891.14914199,0.00016439,2]
[366433008,1750253452168,-3891.14914199,0.00016439,2]
[366433009,1750253452178,-3891.14914199,0.00016439,2]
[366433010,1750253452189,-3891.14914199,0.00016439,2]
[366433011,1750253452200,-3891.14914199,0.00016439,2]
[366433012,1750253452210,-3891.14914199,0.00016439,2]